[Event "86th Tata Steel Tienkamp 2024"]
[Site "Wijk aan Zee"]
[Date "2024.01.28"]
[Round "9.2"]
[White "Niermann, Tristan"]
[Black "De Winter, Arthur"]
[Result "1/2-1/2"]
[ECO "A49"]
[WhiteElo "2413"]
[BlackElo "2409"]
[Annotator "TA"]
[PlyCount "160"]
[EventDate "2024.01.02"]
[EventType "tourn"]
[EventCountry "NED"]
[SourceTitle "playchess.com"]
[Source "ChessBase"]
[SourceQuality "1"]
[TimeControl "40/6000+30:20/3000+30:900+30"]

{[%evp 43,160,158,152,165,179,187,186,184,234,235,222,228,234,234,234,234,250,250,285,251,264,264,264,264,621,96,96,96,96,96,127,111,111,111,111,111,111,111,111,111,111,111,127,111,118,111,111,111,111,111,111,111,111,111,111,0,111,111,111,0,111,111,111,111,111,22,111,111,111,111,111,111,111,111,111,111,111,22,111,20,22,10,15,15,15,10,10,10,10,0,10,0,10,10,10,9,9,0,9,0,0,0,0,0,0,0,0,0,0,0,0,0,0,0,0,0,0,0,0]} 1. Nf3 {[%emt 0:10:04]} Nf6 {[%emt 0:10:09]} 2. g3 {[%emt 0:00:04]} g6 {[%emt 0:00:06]} 3. b3 {[%emt 0:00:05]} Bg7 {[%emt 0:00:28]} 4. Bb2 {[%emt 0:00:11]} O-O {[%emt 0:00:37]} 5. Bg2 {[%emt 0:00:05]} d6 {[%emt 0:00:07]} 6. d4 {[%emt 0:00:04]} c5 {[%emt 0:03:07]} 7. c4 {[%emt 0:00:12]} d5 {[%emt 0:00:38]} 8. O-O {[%emt 0:04:01]} dxc4 {[%emt 0:00:59]} 9. bxc4 {[%emt 0:02:45]} cxd4 {[%emt 0:07:11]} 10. Nxd4 {[%emt 0:00:07]} Nc6 {[%emt 0:05:41]} 11. Nxc6 {[%emt 0:01:42]} bxc6 {[%emt 0:00:02]} 12. Bxc6 {[%emt 0:12:29]} Bh3 {[%emt 0:03:27]} 13. Qxd8 {[%emt 0:04:08]} Raxd8 {[%emt 0:00:11]} 14. Rc1 {[%emt 0:02:17]} Rc8 {[%emt 0:16:07]} 15. Bf3 {[%emt 0:00:40]} Rfd8 {[%emt 0:01:35]} 16. Na3 {[%emt 0:00:50]} Ng4 {[%emt 0:03:28]} 17. Bxg7 {[%emt 0:02:22]} Kxg7 {[%emt 0:01:39]} 18. c5 {[%emt 0:02:08]} Ne5 {[%emt 0:03:49]} 19. Bb7 {[%emt 0:05:20]} Rc7 {[%emt 0:00:03]} 20. c6 {[%emt 0:00:33]} Nxc6 {[%emt 0:00:12]} 21. Ba6 {[%emt 0:08:11]} Rd2 {[%emt 0:23:32]} 22. f3 {[%emt 0:04:22]} Bc8 {[%emt 0:04:02]} 23. Bd3 {[%emt 0:02:11]} (23. Nb5 Bxa6 24. Nxc7 Nd4) 23... Bf5 {[%emt 0:06:28]} 24. Nc4 {[%emt 0:00:37]} Rxd3 {[%emt 0:00:31]} 25. exd3 {[%emt 0:00:05]} Nb4 {[%emt 0:00:09]} (25... Rd7 $142 26. Rc3 (26. Ne3 Nd4 $18) 26... h5) 26. Ne5 {[%emt 0:01:15]} Rxc1+ {[%emt 0:00:48]} 27. Rxc1 {[%emt 0:00:07]} Nxa2 {[%emt 0:00:17]} 28. Rc7 {[%emt 0:02:25]} Kf6 {[%emt 0:03:26]} 29. d4 {[%emt 0:05:10]} ({Don't take} 29. Rxa7 $6 Kxe5 30. d4+ (30. Rxa2 Bxd3 31. h4 Kf6 $16) 30... Kxd4 $16) 29... a5 {[%emt 0:01:32]} 30. Nc6 {[%emt 0:01:02]} Nc3 {[%emt 0:02:51]} 31. Nxe7 {[%emt 0:01:20]} Nb5 {[%emt 0:00:29]} 32. Rc5 {[%emt 0:00:54]} Nxd4 {[%emt 0:00:05]} 33. Nxf5 {[%emt 0:00:08]} Nxf3+ $2 {[%emt 0:00:10]} (33... Nxf5 34. Rxa5 Ng7) 34. Kf2 $2 {[%emt 0:00:35]} (34. Kg2 $18 {is the precise move to win.} Ne1+ 35. Kf1) 34... Ne5 $16 {[%emt 0:00:20]} 35. Rxa5 {[%emt 0:04:35]} Kxf5 {[%emt 0:00:10]} 36. Ke3 {[%emt 0:00:54]} Kf6 {[%emt 0:11:16]} 37. Ke4 {[%emt 0:04:57]} Ng4 {[%emt 0:00:53]} 38. Ra6+ {[%emt 0:01:30]} Kg7 {[%emt 0:00:29]} 39. Ra2 {[%emt 0:00:28]} Nf6+ {[%emt 0:01:23]} 40. Ke5 {[%emt 0:02:27]} Nd7+ {[%emt 0:00:56]} 41. Kd6 {[%emt 0:52:10]} Nf6 {[%emt 0:22:19]} 42. Ra4 {[%emt 0:00:00]} Kg8 {[%emt 0:02:35]} 43. Rd4 {[%emt 0:00:00]} Kf8 {[%emt 0:00:53]} 44. h3 {[%emt 0:00:00]} h5 {[%emt 0:05:15]} 45. Ke5 {[%emt 0:00:00]} Kg7 {[%emt 0:02:31]} 46. Rd6 {[%emt 0:00:00]} Nh7 {[%emt 0:01:38]} 47. Kf4 {[%emt 0:00:00]} Nf6 {[%emt 0:01:31]} 48. Rd8 {[%emt 0:00:00]} Kh7 {[%emt 0:00:45]} 49. Rd6 {[%emt 0:00:00]} Kg7 {[%emt 0:00:11]} 50. Rd4 {[%emt 0:00:00]} Kh7 {[%emt 0:02:17]} 51. Ke5 {[%emt 0:00:00]} Kg7 {[%emt 0:00:28]} 52. Rf4 {[%emt 0:00:00]} Nd7+ {[%emt 0:02:35]} 53. Kd6 {[%emt 0:00:00]} Nf6 {[%emt 0:00:10]} 54. Rf3 {[%emt 0:00:00]} (54. Ra4 $16) 54... Ng8 {[%emt 0:06:09]} (54... Ne4+ $11 55. Ke7 Ng5) 55. Rf1 {[%emt 0:00:00]} Nf6 {[%emt 0:00:38]} 56. Rf4 {[%emt 0:00:00]} Ng8 {[%emt 0:00:55]} 57. Ke5 {[%emt 0:00:00]} Nh6 {[%emt 0:00:18]} 58. Rf1 {[%emt 0:00:00]} Nf5 {[%emt 0:03:01]} 59. Rf3 {[%emt 0:01:16]} Nh6 {[%emt 0:00:22]} 60. Rf4 {[%emt 0:00:54]} (60. Rb3 $16) 60... Ng8 {[%emt 0:01:31]} (60... Nf5 $11 {remains equal.}) 61. g4 {[%emt 0:16:40]} ({White should try} 61. Rf2 $16) 61... hxg4 {[%emt 0:15:30]} 62. hxg4 {[%emt 0:00:14]} g5 {[%emt 0:01:58]} 63. Rb4 {[%emt 0:03:51]} Nh6 {[%emt 0:00:17]} 64. Re4 {[%emt 0:02:12]} f6+ {[%emt 0:01:34]} 65. Ke6 {[%emt 0:00:53]} Kg6 {[%emt 0:00:05]} 66. Ke7 {[%emt 0:00:07]} Kg7 {[%emt 0:00:36]} 67. Ke6 {[%emt 0:01:26]} Kg6 {[%emt 0:00:07]} 68. Kd6 {[%emt 0:02:11]} Kg7 {[%emt 0:00:22]} 69. Kd7 {[%emt 0:00:59]} Kg6 {[%emt 0:00:11]} 70. Ke8 {[%emt 0:01:49]} Kg7 {[%emt 0:00:10]} 71. Ra4 {[%emt 0:00:40]} Kg6 {[%emt 0:00:17]} 72. Kf8 {[%emt 0:01:17]} Nxg4 {[%emt 0:00:59]} 73. Rxg4 {[%emt 0:00:14]} f5 {[%emt 0:00:17]} 74. Ra4 {[%emt 0:06:28]} f4 {[%emt 0:00:39]} 75. Ra6+ {[%emt 0:02:25]} Kf5 {[%emt 0:00:35]} 76. Kg7 {[%emt 0:00:07]} f3 {[%emt 0:01:03]} 77. Rf6+ {[%emt 0:00:50]} Ke4 {[%emt 0:00:08]} 78. Kg6 {[%emt 0:00:13]} Ke3 {[%emt 0:01:14]} 79. Kxg5 {[%emt 0:01:36]} f2 {[%emt 0:00:03]} 80. Rxf2 {[%emt 0:00:12]} Kxf2 {[%emt 0:00:02]} 1/2-1/2

[Event "86th Tata Steel Tienkamp 2024"]
[Site "Wijk aan Zee"]
[Date "2024.01.28"]
[Round "9.3"]
[White "Abdulla, Murad"]
[Black "Zwirs, Nico"]
[Result "1-0"]
[ECO "B90"]
[WhiteElo "2332"]
[BlackElo "2476"]
[Annotator "TA"]
[PlyCount "97"]
[EventDate "2024.01.02"]
[EventType "tourn"]
[EventCountry "NED"]
[SourceTitle "playchess.com"]
[Source "ChessBase"]
[SourceQuality "1"]
[TimeControl "40/6000+30:20/3000+30:900+30"]

{[%evp 12,96,22,19,16,13,31,16,0,5,17,0,0,-54,-58,-58,-67,-49,-50,-43,-65,-64,-48,-63,0,0,0,17,9,3,39,56,32,30,98,75,90,80,81,53,45,45,68,50,70,42,214,203,241,270,241,264,347,336,571,566,588,564,570,564,567,575,550,445,569,582,629,459,624,626,591,510,602,627,644,629,678,671,651,640,694,704,29984,29985,29998,29999,29999]} 1. e4 {[%emt 0:10:01]} c5 {[%emt 0:11:52]} 2. Nf3 {[%emt 0:00:12]} d6 {[%emt 0:00:00]} 3. d4 {[%emt 0:00:22]} cxd4 {[%emt 0:00:00]} 4. Nxd4 {[%emt 0:00:06]} Nf6 {[%emt 0:00:00]} 5. Nc3 {[%emt 0:00:03]} a6 {[%emt 0:00:00]} 6. h3 {[%emt 0:00:18]} e5 {[%emt 0:00:00]} 7. Nde2 {[%emt 0:00:11]} h5 {[%emt 0:00:00]} 8. g3 {[%emt 0:00:32]} Be7 {[%emt 0:03:33]} 9. a4 {[%emt 0:01:44]} Nc6 {[%emt 0:03:59][%cal Od6d5] The position is equal.} 10. Bg2 {[%emt 0:02:30]} Nb4 {[%emt 0:00:28][%cal Od6d5]} 11. O-O {[%emt 0:08:31]} Be6 {[%emt 0:02:30]} 12. Nd5 {[%emt 0:01:51]} (12. Bg5 $11) 12... Nfxd5 $15 {[%emt 0:05:34]} 13. exd5 {[%emt 0:00:22]} Bf5 {[%emt 0:00:07]} 14. c3 {[%emt 0:03:25]} Nd3 {[%emt 0:00:52]} 15. Be3 {[%emt 0:01:14]} Nxb2 {[%emt 0:02:19]} 16. Qb3 {[%emt 0:01:10][%csl LRb2,LRb7]} Nd3 {[%emt 0:01:09]} 17. Qxb7 {[%emt 0:00:59]} Qc8 {[%emt 0:26:03]} (17... O-O $15) 18. Rfb1 $11 {[%emt 0:10:44]} Nc5 {[%emt 0:08:55]} 19. Qxc8+ {[%emt 0:00:33]} Rxc8 {[%emt 0:01:15]} 20. Rb6 {[%emt 0:00:42]} O-O {[%emt 0:12:01]} 21. a5 {[%emt 0:12:49]} Bd3 {[%emt 0:03:58]} 22. Nc1 {[%emt 0:01:07][%cal Be2c1,Bc1a2,Ba2b4,Bb4c6][%mdl 32] Black must now prevent Bxc5.} Bc4 {[%emt 0:03:52] [#]} (22... Bb5 $1 $11) 23. Rb4 $1 $16 {[%emt 0:01:37]} Nd7 {[%emt 0:13:54]} 24. Rb7 {[%emt 0:10:24]} Rfd8 {[%emt 0:00:05]} 25. Na2 {[%emt 0:00:22] White is more active.} Bf6 {[%emt 0:04:05]} 26. Nb4 {[%emt 0:01:01] Strongly threatening Nc6.} Nc5 {[%emt 0:00:08]} 27. Rb6 {[%emt 0:02:53] Threatens to win with Nc6.} e4 $1 {[%emt 0:02:01]} 28. Ra3 $36 {[%emt 0:00:10][%mdl 2048] White is more active.} Bb5 $2 {[%emt 0:02:33] Black cannot hold the game after this.} (28... h4 $14) 29. Nc6 $18 {[%emt 0:08:31]} Rd7 {[%emt 0:00:04]} 30. Bf1 {[%emt 0:02:38] Against Bc4} (30. Bxc5 $6 dxc5 31. Bxe4 Re8 $16) 30... Nd3 {[%emt 0:01:58] [#]} 31. f3 $1 {[%emt 0:00:56][%mdl 512]} Re8 {[%emt 0:00:37]} (31... exf3 $2 {loses.} 32. Rxb5 f2+ 33. Kh2 $18 (33. Bxf2 Nxf2 34. Rb4 Nd1 $18)) (31... Bc4 32. fxe4) 32. fxe4 {[%emt 0:03:18]} ({Don't play} 32. Rxb5 axb5 33. a6 Ne1 $18) 32... Rxe4 $2 {[%emt 0:00:31]} (32... Bc4 {might work better.} 33. Bd4 Rxe4) 33. Rb8+ {[%emt 0:05:43]} Kh7 {[%emt 0:00:10] [#]} 34. c4 $1 {[%emt 0:00:12][%mdl 512]} Bxc4 {[%emt 0:01:44]} 35. Bxd3 {[%emt 0:00:20]} Bxd3 {[%emt 0:00:01]} 36. Rxd3 {[%emt 0:00:06]} Ra4 {[%emt 0:00:03]} 37. Bd4 {[%emt 0:02:37]} Bg5 {[%emt 0:00:36]} 38. h4 {[%emt 0:00:22]} Bh6 {[%emt 0:00:15]} 39. Be3 {[%emt 0:00:21]} f5 {[%emt 0:01:06]} 40. Bxh6 {[%emt 0:03:23]} Kxh6 {[%emt 0:00:04]} 41. Rh8+ {[%emt 0:51:12]} Kg6 {[%emt 0:52:00]} 42. Kg2 {[%emt 0:08:24]} f4 {[%emt 0:00:00]} 43. gxf4 {[%emt 0:00:00]} Rb7 {[%emt 0:00:00]} 44. Rg3+ {[%emt 0:00:00]} Kf5 {[%emt 0:00:00]} 45. Rxh5+ {[%emt 0:00:00]} Kxf4 {[%emt 0:00:00]} 46. Rhg5 {[%emt 0:00:00] White wants to mate with R3g4+.} Rb2+ {[%emt 0:00:00]} 47. Kh3 {[%emt 0:00:00] White mates.} Ra1 {[%emt 0:00:00]} 48. R5g4+ {[%emt 0:00:00]} Kf5 {[%emt 0:00:00]} 49. Rf3# {[%emt 0:00:00] Weighted Error Value: White=0.13 (very precise) /Black=0.37.  Loses game:     	---       	Black=1      Mistake:       	White=1     	Black=3      Inaccurate:     	White=2     	Black=3      OK:         	White=16    	Black=13     Best:        	White=4     	Black=2      Strong:       	White=1     	Black=1      Brilliant:      	White=1     	---} 1-0

[Event "86th Tata Steel Tienkamp 2024"]
[Site "Wijk aan Zee"]
[Date "2024.01.28"]
[Round "9.4"]
[White "Baselmans, Luuk"]
[Black "Pastar, Slaven"]
[Result "0-1"]
[ECO "C75"]
[WhiteElo "2323"]
[BlackElo "2343"]
[Annotator "TA"]
[PlyCount "122"]
[EventDate "2024.01.02"]
[EventType "tourn"]
[EventCountry "NED"]
[SourceTitle "playchess.com"]
[Source "ChessBase"]
[SourceQuality "1"]
[TimeControl "40/6000+30:20/3000+30:900+30"]

{[%evp 47,122,0,37,17,30,22,81,68,97,109,132,129,139,0,0,0,0,-322,-120,-151,-93,-94,-104,-399,-294,-631,-246,-200,-146,-135,0,-422,-27,-84,-77,-168,-168,-175,-175,-175,-175,-219,-223,-252,-233,-222,-216,-228,-228,-237,-237,-395,-395,-349,-349,-390,-383,-552,-349,-547,-554,-547,-531,-1301,-1292,-1241,-993,-1139,-1337,-1396,-1487,-977,-1530,-4622,-4622,-1702,-1425]} 1. e4 {[%emt 0:10:04]} e5 {[%emt 0:10:22]} 2. Nf3 {[%emt 0:00:10]} Nc6 {[%emt 0:00:26]} 3. Bb5 {[%emt 0:00:35]} Nge7 {[%emt 0:05:06]} 4. c3 {[%emt 0:04:35]} a6 {[%emt 0:03:25]} 5. Ba4 {[%emt 0:00:57]} d6 {[%emt 0:09:34]} 6. d4 {[%emt 0:03:02]} Bd7 {[%emt 0:05:01]} 7. O-O {[%emt 0:04:30]} Ng6 {[%emt 0:00:50]} 8. Re1 {[%emt 0:03:52]} Be7 {[%emt 0:00:57]} 9. d5 {[%emt 0:05:09]} Nb8 {[%emt 0:01:35]} 10. c4 {[%emt 0:00:15]} b5 {[%emt 0:12:37]} 11. Bc2 {[%emt 0:03:50]} O-O {[%emt 0:02:48]} 12. Be3 {[%emt 0:05:30]} h6 {[%emt 0:04:38]} 13. Nbd2 {[%emt 0:03:44]} c5 {[%emt 0:02:31]} 14. dxc6 {[%emt 0:07:16]} Bxc6 {[%emt 0:05:43]} 15. a4 {[%emt 0:03:28]} b4 {[%emt 0:04:31]} 16. a5 {[%emt 0:00:47]} Nd7 {[%emt 0:01:45]} 17. Nf1 {[%emt 0:05:12]} Qc7 {[%emt 0:03:34]} 18. Ng3 {[%emt 0:01:52]} Rfd8 {[%emt 0:01:18]} 19. Nf5 {[%emt 0:01:20]} Bf8 {[%emt 0:02:52]} 20. Nd2 {[%emt 0:00:41]} Ne7 {[%emt 0:04:24]} 21. Qg4 {[%emt 0:04:18]} Nxf5 {[%emt 0:01:44]} 22. exf5 {[%emt 0:00:12]} Nf6 {[%emt 0:01:48]} 23. Qh4 {[%emt 0:00:52]} Qe7 {[%emt 0:09:37]} 24. Qh3 {[%emt 0:06:35]} Rab8 {[%emt 0:01:32]} 25. Rad1 {[%emt 0:03:23]} Qb7 {[%emt 0:00:36]} 26. g4 {[%emt 0:03:13]} Nh7 {[%emt 0:03:35]} (26... Nd7 $11 {remains equal.}) 27. Qg3 $16 {[%emt 0:05:55]} d5 {[%emt 0:02:24]} 28. Bb6 {[%emt 0:01:24]} (28. Qxe5 $2 Bd6 29. Qd4 Qc7 $17 (29... dxc4 30. Qxc4 Bb5 31. Qe4 $11)) 28... Re8 {[%emt 0:01:38]} 29. cxd5 {[%emt 0:02:52]} (29. Rxe5 Rxe5 30. Qxe5 dxc4 $17) 29... Bxd5 {[%emt 0:00:11]} 30. Rxe5 {[%emt 0:00:15]} (30. Ne4 $1 $16) 30... Rxe5 $11 {[%emt 0:00:58]} 31. Qxe5 {[%emt 0:00:07]} Ng5 {[%emt 0:03:42]} 32. Qg3 $2 {[%emt 0:01:10][%mdl 8192] [#]} (32. h4 $11 Qc6 33. hxg5 (33. Qxb8 $2 Qxc2 34. Rf1 Nh3+ 35. Kh2 Qxd2 $19) 33... Qxc2 34. Rf1 Rxb6 35. axb6 (35. Qxd5 $2 Rd6 $19) 35... Qxd2 36. g6) 32... Re8 $2 {[%emt 0:01:02]} (32... Bd6 $1 $19 {[%cal Rd6g3] is more deadly.} 33. Qxd6 Nh3+ 34. Kf1 Re8) 33. h4 {[%emt 0:02:10]} Nf3+ {[%emt 0:01:14]} (33... Qc6 $142 $1 {[%cal Rc6c2]} 34. Bb3 Nf3+ 35. Nxf3 Bxf3) 34. Nxf3 $17 {[%emt 0:00:12]} Bxf3 {[%emt 0:00:04]} 35. Rc1 $2 {[%emt 0:01:03][%mdl 8192]} (35. Rf1 $17) 35... Qd5 {[%emt 0:02:04]} 36. Be3 $2 {[%emt 0:01:43]} (36. Ba4 Bd6 37. Qh3 (37. Bc6 Qxc6)) 36... Bd6 $2 {[%emt 0:01:07]} (36... Rc8 37. Kh2 Rc4 (37... Bd6 $2 38. Bf4 $19)) 37. Bf4 $19 {[%emt 0:00:51]} Bxf4 {[%emt 0:01:10]} 38. Qxf4 {[%emt 0:00:06] [#]} Rc8 {[%emt 0:00:27]} (38... Bh1 $1 $17 {[%csl Gh1][%cal Rd5g2]} 39. Qg3 Qd2) 39. Kh2 $2 {[%emt 0:13:10][%mdl 8192]} (39. Bb1 $1 $11 Rxc1+ 40. Qxc1) 39... Qc6 $2 {[%emt 0:00:12]} (39... Rc4 $19 40. Qb8+ Kh7 41. f6+ (41. Bb3 $2 Qd2 $19) 41... Rxc2 (41... g6 42. h5 $11) 42. Rxc2 Qd1) 40. f6 {[%emt 0:00:44]} (40. Qxb4 Be4 41. Qxe4 Qxe4 42. Bxe4 Rxc1 $11) (40. Re1 $11 Qxc2 41. Qxf3) 40... Be4 $1 $17 {[%emt 0:00:34]} (40... Qxf6 $2 41. Qxf6 (41. Qxb4 $2 Qxh4+ 42. Kg1 Qh1#) (41. Bh7+ Kxh7 42. Qxf6 gxf6 $18) 41... gxf6 42. Bh7+ Kxh7 43. Rxc8 $18) 41. Bd3 {[%emt 0:34:39]} (41. Bb3 $17 {is a better defense.} Qxc1 42. Qxe4) 41... Qxc1 $19 {[%emt 0:21:03]} 42. Qxe4 {[%emt 0:00:06]} gxf6 {[%emt 0:02:23]} 43. Qxb4 {[%emt 0:01:56]} Qc7+ {[%emt 0:03:04]} 44. Kg2 {[%emt 0:00:14]} Qc6+ {[%emt 0:03:03]} 45. Be4 {[%emt 0:05:05]} Qe6 {[%emt 0:02:13]} 46. Bf5 {[%emt 0:01:38]} Qd5+ {[%emt 0:00:08]} 47. Be4 {[%emt 0:00:18]} Qe5 {[%emt 0:04:06]} 48. Bd3 {[%emt 0:03:20]} Rb8 {[%emt 0:04:01]} 49. Qe4 $2 {[%emt 0:02:06]} (49. Qc3) 49... Qxe4+ $19 {[%emt 0:02:20]} (49... Rxb2 50. Qh7+ Kf8 51. Bc4 $11 (51. Qxh6+ Ke7 $17)) 50. Bxe4 {[%emt 0:00:06]} Rb5 {[%emt 0:00:23]} ({Don't do} 50... Rxb2 51. Bd3) 51. Bd3 {[%emt 0:01:22]} Rxa5 {[%emt 0:00:07]} ({Not} 51... Rxb2 52. Bxa6 Ra2 53. h5 $19) 52. b4 {[%emt 0:00:07]} (52. Kf3 $142) 52... Ra3 $19 {[%emt 0:00:39]} 53. Bf1 {[%emt 0:00:48]} (53. Bf5 $142) 53... Kg7 {[%emt 0:04:41]} 54. f3 {[%emt 0:00:27]} f5 {[%emt 0:00:25]} 55. gxf5 {[%emt 0:00:28]} Kf6 {[%emt 0:00:24]} 56. Kg3 {[%emt 0:01:43]} Kxf5 {[%emt 0:00:17]} 57. Bc4 {[%emt 0:00:49]} f6 {[%emt 0:00:06]} 58. Bf1 {[%emt 0:00:47]} h5 {[%emt 0:04:03]} 59. Bc4 {[%emt 0:00:55]} Ke5 {[%emt 0:00:51]} 60. Bf7 {[%emt 0:00:24]} f5 {[%emt 0:00:49]} 61. Bxh5 {[%emt 0:15:27]} Rb3 {[%emt 0:15:10]} 0-1

[Event "86th Tata Steel Tienkamp 2024"]
[Site "Wijk aan Zee"]
[Date "2024.01.28"]
[Round "9.5"]
[White "Van Foreest, Machteld"]
[Black "Holzke, Frank"]
[Result "1/2-1/2"]
[ECO "C00"]
[WhiteElo "2363"]
[BlackElo "2460"]
[Annotator "TA"]
[PlyCount "115"]
[EventDate "2024.01.02"]
[EventType "tourn"]
[EventCountry "NED"]
[SourceTitle "playchess.com"]
[Source "ChessBase"]
[SourceQuality "1"]
[TimeControl "40/6000+30:20/3000+30:900+30"]

{[%evp 23,115,13,29,28,38,32,34,-4,0,0,0,0,0,0,0,0,0,0,0,0,0,0,0,0,0,0,0,0,0,0,0,0,27,28,102,89,96,92,94,42,41,30,35,22,44,30,43,37,68,35,90,21,26,0,0,-25,-27,-15,0,0,0,0,0,-22,0,0,0,0,0,0,0,0,0,-8,0,-5,0,0,0,0,0,0,0,0,0,0,0,0,0,0,0,0,0,0]} 1. e4 {[%emt 0:10:03]} e6 {[%emt 0:10:18]} 2. Qe2 {[%emt 0:01:45]} e5 {[%emt 0:00:17]} 3. Nf3 {[%emt 0:01:14]} Nc6 {[%emt 0:00:12]} 4. g3 {[%emt 0:02:00]} Nf6 {[%emt 0:00:50]} 5. Bg2 {[%emt 0:03:01]} Bc5 {[%emt 0:00:25]} 6. O-O {[%emt 0:01:30] C00: French: Unusual White 2nd moves.} O-O {[%emt 0:00:34]} 7. d3 {[%emt 0:01:59]} Re8 {[%emt 0:04:30]} 8. c3 {[%emt 0:08:44]} a5 {[%emt 0:01:21]} 9. Rd1 $146 {[%emt 0:05:28]} ({Predecessor:} 9. Nbd2 h6 10. a4 d5 11. Rd1 dxe4 12. dxe4 Ng4 13. Rf1 b6 14. h3 Ba6 15. Nc4 {1-0 Vaibhav,J (2243)-Winterberg,L (2394) Titled Tuesday intern op 13th Sep Early blitz 2022 (7)}) 9... Ba7 {[%emt 0:03:15]} 10. Na3 {[%emt 0:03:14]} d6 {[%emt 0:02:42]} 11. Nc2 {[%emt 0:01:43]} h6 {[%emt 0:06:40]} 12. Be3 {[%emt 0:03:42]} d5 {[%emt 0:03:58]} 13. Bxa7 {[%emt 0:08:51]} Rxa7 {[%emt 0:00:16]} 14. exd5 {[%emt 0:01:40]} Nxd5 {[%emt 0:00:42]} 15. Ne3 {[%emt 0:00:52]} Nf4 {[%emt 0:06:08]} 16. Qf1 {[%emt 0:05:17]} Nxg2 {[%emt 0:00:46]} 17. Qxg2 {[%emt 0:00:05]} Ra6 {[%emt 0:03:09]} 18. d4 {[%emt 0:01:33]} exd4 {[%emt 0:01:01]} 19. Nxd4 {[%emt 0:03:10]} Nxd4 {[%emt 0:00:18]} 20. Rxd4 {[%emt 0:00:06]} Rd6 {[%emt 0:00:21]} 21. Rad1 {[%emt 0:00:20]} Rxd4 {[%emt 0:00:19]} 22. Rxd4 {[%emt 0:00:12]} Qf6 {[%emt 0:01:20]} 23. h4 {[%emt 0:06:28]} b6 {[%emt 0:05:39]} 24. Qd5 {[%emt 0:07:41]} Ba6 {[%emt 0:07:24]} 25. Rf4 {[%emt 0:03:59]} Qe6 {[%emt 0:03:44]} 26. Qxe6 {[%emt 0:00:56]} Rxe6 {[%emt 0:00:10]} 27. Rd4 {[%emt 0:00:03]} g6 {[%emt 0:02:59]} 28. Rd7 {[%emt 0:00:40]} c6 {[%emt 0:00:58]} (28... Be2 $11 {remains equal.}) 29. c4 $16 {[%emt 0:00:58]} Kg7 {[%emt 0:01:58]} 30. Ra7 {[%emt 0:07:12]} Bc8 {[%emt 0:00:16]} 31. Ra8 {[%emt 0:00:45]} (31. Rc7 $16 Ba6 32. b3) 31... Bb7 $14 {[%emt 0:01:25]} 32. Rb8 {[%emt 0:00:51]} Re7 {[%emt 0:00:13]} 33. g4 {[%emt 0:02:40]} c5 {[%emt 0:00:50]} 34. Kh2 {[%emt 0:04:27]} Kf6 {[%emt 0:02:43]} 35. Kg3 {[%emt 0:00:05]} Ke5 {[%emt 0:01:01]} 36. Rd8 {[%emt 0:01:56]} f5 {[%emt 0:07:46]} (36... Kf6 $14) 37. Nd5 {[%emt 0:02:37]} ({White should play} 37. Rf8 $16) 37... Bxd5 $11 {[%emt 0:05:02]} 38. cxd5 {[%emt 0:01:18]} fxg4 {[%emt 0:02:55]} 39. Kxg4 {[%emt 0:01:30]} Rf7 {[%emt 0:01:55]} 40. Kg3 {[%emt 0:00:12]} g5 {[%emt 0:00:37]} 41. hxg5 {[%emt 0:52:00]} hxg5 {[%emt 0:50:25]} 42. d6 {[%emt 0:00:05]} a4 {[%emt 0:08:27]} 43. d7 {[%emt 0:01:12]} Kf5 {[%emt 0:07:02]} 44. f3 {[%emt 0:03:21]} a3 {[%emt 0:02:00]} 45. bxa3 {[%emt 0:00:00]} Ke6 {[%emt 0:00:00]} 46. Rb8 {[%emt 0:00:00]} Rxd7 {[%emt 0:00:00]} 47. Rxb6+ {[%emt 0:00:00]} Ke5 {[%emt 0:00:00]} 48. Kg4 {[%emt 0:00:00]} c4 {[%emt 0:00:00]} 49. Rb1 {[%emt 0:00:00]} Rg7 {[%emt 0:00:00]} 50. Rd1 {[%emt 0:00:00]} c3 {[%emt 0:00:00]} (50... Rf7 $5 51. Rf1 $8 c3 $11) 51. a4 $1 {[%emt 0:00:00]} c2 {[%emt 0:00:00]} 52. Rc1 {[%emt 0:00:00]} Rc7 {[%emt 0:00:00]} 53. Kxg5 {[%emt 0:00:00]} Rg7+ {[%emt 0:00:00]} 54. Kh6 {[%emt 0:00:00]} Rg2 {[%emt 0:00:00]} 55. a5 {[%emt 0:00:00]} Kf6 {[%emt 0:00:00]} 56. Kh5 {[%emt 0:00:00]} Kf5 {[%emt 0:00:00]} 57. Kh6 {[%emt 0:00:00]} Kf6 {[%emt 0:00:00]} 58. Kh5 {[%emt 0:00:00]} 1/2-1/2